bitfinex/quotes_ETHUSD_20241023
["timestamp","ask_amount","ask_price","bid_price","bid_amount"]
[1729702636189,0.653861,2493.1,2492.5,4.01203]
[1729702636396,1.379,2493.3,2492.5,4.01203]
[1729702636580,1.379,2493.3,2492.7,4.01163]
[1729702636581,0.36303802,2493.2,2492.7,4.01163]
[1729702636780,2.44024006,2494.1,2492.9,4.01136]
[1729702636781,1.2948,2493.7,2492.9,4.01136]
[1729702637098,1.2948,2493.7,2493.0,4.01115]
[1729702637283,0.01,2494.4,2493.1,4.09114088]
[1729702637284,4.01908,2494.4,2493.1,4.09114088]
[1729702637482,1.2948,2494.2,2493.2,4.01077]
[1729702637683,1.2948,2494.2,2493.1,8.02186]
[1729702637882,0.36317531,2494.1,2493.2,4.01076]
[1729702638213,1.2948,2494.2,2492.8,0.55]
[1729702638518,1.2948,2494.2,2493.2,4.01089]
[1729702638519,5.30415,2494.2,2493.2,4.01089]
[1729702638728,1.2948,2494.2,2493.2,4.01089]
[1729702639116,1.2948,2494.2,2493.3,4.01074]
[1729702639296,4.00997,2493.8,2492.7,1.2645]
[1729702639494,5.28886,2494.0,2492.7,1.2645]
[1729702639495,4.00979,2493.9,2492.8,4.01142]
[1729702639711,4.00999,2493.8,2492.8,4.01142]
[1729702639926,4.00995,2493.8,2492.8,4.01142]
[1729702640125,4.00995,2493.8,2492.4,4.01213]
[1729702640126,4.2792,2493.7,2492.4,4.01213]
[1729702640365,4.2792,2493.7,2492.3,1.2718]
[1729702640366,4.01076,2493.3,2492.3,1.2718]
[1729702640499,8.28935,2493.7,2492.7,4.01159]
[1729702640700,8.28935,2493.7,2492.8,4.01146]
[1729702640701,1.2792,2493.7,2492.8,4.01146]
[1729702641046,1.2792,2493.7,2492.7,4.01159]
[1729702641343,1.2792,2493.7,2492.8,4.01148]
[1729702641531,1.287,2492.9,2491.7,0.51627806]
[1729702641843,1.287,2492.9,2491.0,1.68106759]
[1729702641844,4.01251,2492.2,2490.9,5.31759]
[1729702642002,3.0,2492.3,2491.0,0.531759]
[1729702642201,1.293,2492.4,2491.1,4.0142]
[1729702642403,5.3053,2492.4,2491.2,4.01399]
[1729702642656,1.293,2492.4,2491.4,4.01379]
[1729702643004,1.293,2492.4,2491.5,0.08026345]
[1729702643204,11.00284043,2492.8,2491.6,1.3097]
[1729702643205,1.283,2492.8,2491.6,1.3097]
[1729702643404,1.283,2492.8,2492.1,4.01258]
[1729702643642,4.01149,2492.9,2491.8,4.01315]
[1729702643826,5.32809,2493.1,2491.9,4.09321837]
[1729702644073,1.317,2493.1,2492.2,4.01236]
[1729702644371,1.317,2493.1,2492.0,4.56273]
[1729702644508,1.317,2493.1,2491.9,0.55]
[1729702644509,4.01134,2493.0,2491.9,0.55]
[1729702644842,4.01128,2493.0,2492.0,4.01284]
[1729702645044,4.01128,2493.0,2491.9,0.55]
[1729702645249,1.317,2493.1,2492.1,4.01257]
[1729702645431,4.01126,2493.0,2492.0,4.0127]
[1729702645617,5.32807,2493.1,2492.1,4.01266]
[1729702645810,4.01123,2493.0,2492.0,4.0127]
[1729702646015,1.317,2493.1,2492.2,4.01249]
[1729702646214,1.317,2493.1,2492.1,1.3236]
[1729702646615,1.317,2493.1,2492.1,5.33615]
[1729702646811,4.01125,2493.0,2492.1,1.3236]
[1729702647013,4.01205,2492.5,2491.5,4.01359]
[1729702647213,4.01123,2493.0,2491.2,1.3236]
[1729702647214,4.01243,2492.3,2491.2,1.3236]
[1729702647420,1.3796,2492.6,2491.7,4.0133]
[1729702647920,5.39161,2492.6,2491.5,4.01349]
[1729702648120,5.39161,2492.6,2491.6,4.09368589]
[1729702648323,5.39161,2492.6,2491.6,0.08025589]
[1729702648555,7.01134,2493.0,2491.6,0.08025589]
[1729702648710,1.3796,2492.9,2492.1,4.01258]
[1729702648909,1.3796,2492.9,2492.0,1.3236]
[1729702649153,1.3796,2492.9,2492.1,4.01258]
[1729702649308,5.39099,2492.9,2492.0,5.870059]
[1729702649509,1.3796,2492.9,2492.2,4.01249]
[1729702649733,8.02222,2493.1,2492.2,4.01249]
[1729702649933,8.02222,2493.1,2492.0,5.869979]
[1729702649934,4.01311,2491.9,2491.0,1.3753]
[1729702650239,8.36399,2492.3,2491.1,4.01414]
[1729702650240,1.3515,2492.3,2491.1,4.01414]
[1729702650440,5.36386,2492.3,2491.3,4.01384]
[1729702650747,1.3515,2492.3,2491.3,4.01384]
[1729702650953,4.01253,2492.2,2491.2,0.538944]
[1729702651156,1.3515,2492.3,2491.2,4.553034]
[1729702651157,4.01268,2492.1,2491.2,4.553034]
[1729702651512,4.01268,2492.1,2491.0,1.3753]
[1729702651513,4.01311,2491.9,2491.0,1.3753]
[1729702651855,4.01329,2491.8,2491.0,1.3753]
[1729702652063,3.0,2492.2,2491.3,8.02781]
[1729702652207,3.0,2492.2,2491.0,1.3753]
[1729702652208,4.01268,2492.1,2491.0,5.38975]
[1729702652612,4.01287,2492.0,2491.0,9.40404]
[1729702652815,4.01287,2492.0,2491.0,10.344444]
[1729702653052,4.01268,2492.1,2491.0,6.329994]
[1729702653216,4.01268,2492.1,2491.1,4.01421]
[1729702653412,4.01293,2492.0,2491.1,4.01428]
[1729702654654,4.01326,2491.8,2491.0,5.38973]
[1729702654856,1.3124,2491.6,2490.8,0.08026794]
[1729702655027,1.3124,2491.6,2490.4,1.3262]
[1729702655028,4.0131,2491.9,2491.0,4.01431]
[1729702655365,1.3124,2492.0,2491.1,5.4207428]
[1729702655561,1.3124,2492.0,2491.3,4.01395]
[1729702655764,1.3124,2492.0,2491.4,0.08026595]
[1729702655963,4.01266,2492.2,2491.4,4.01378]
[1729702656163,4.01266,2492.2,2491.3,4.01395]
[1729702656164,4.0127,2492.1,2491.3,4.01395]
[1729702656364,4.01277,2492.1,2491.3,4.01394]
[1729702656564,4.01277,2492.1,2491.3,4.01384]
[1729702656771,4.01266,2492.2,2491.4,4.01369]
[1729702657063,4.0128,2492.1,2491.2,4.56401]
[1729702657266,4.01265,2492.2,2491.2,4.56401]
[1729702657467,4.01285,2492.0,2491.2,4.56401]
[1729702657628,4.01285,2492.0,2491.2,0.55]
[1729702657834,4.01318,2491.8,2491.1,5.34036]
[1729702658925,4.45881009,2491.9,2491.2,0.08026791]
[1729702659171,5.25389,2492.6,2491.7,4.01325]
[1729702659375,1.2419,2492.6,2492.0,4.01282]
[1729702659557,1.2419,2492.6,2492.0,4.01273]
[1729702660380,5.25381,2492.6,2492.0,4.01273]
[1729702660728,4.45881009,2492.4,2491.6,0.55]
[1729702660929,4.45881009,2492.4,2490.0,1.19577925]
[1729702660930,1.3077,2490.8,2490.0,1.19577925]
[1729702661179,4.45881009,2490.6,2490.1,4.01581]
[1729702661482,5.32251,2490.8,2490.1,8.03162]
[1729702661682,1.3077,2490.8,2490.0,1.19577925]
[1729702661833,1.3077,2490.8,2490.2,4.21573]
[1729702662230,5.32249,2490.8,2490.2,4.21573]
[1729702662474,4.01473,2490.9,2490.3,0.08030048]
[1729702662635,4.01473,2490.9,2490.3,4.01555]
[1729702662840,4.01503,2490.7,2490.2,0.2]
[1729702663042,4.01503,2490.7,2490.2,4.21573]
[1729702663269,4.0147,2490.9,2490.3,0.08030104]
[1729702663270,4.01478,2490.8,2490.3,0.08030104]
[1729702663781,4.01461,2491.0,2490.3,4.01554]
[1729702664142,4.01464,2490.9,2490.3,4.01554]
[1729702664380,4.01464,2490.9,2490.3,4.01558]
[1729702664759,4.015,2490.7,2490.2,4.21561]
[1729702665051,4.015,2490.7,2490.2,0.2]
[1729702665283,4.01468,2490.9,2490.2,4.21572]
[1729702665459,8.02937,2490.9,2490.3,4.09577303]
[1729702665641,4.01468,2490.9,2490.3,4.09577303]
[1729702666085,4.01468,2490.9,2490.3,4.01547]
[1729702666392,4.01478,2490.8,2490.3,4.01547]
[1729702666680,4.01468,2490.9,2490.3,4.01547]
[1729702666890,4.01468,2490.9,2490.4,4.01539]
[1729702667056,4.01468,2490.9,2490.4,8.03072]
[1729702667253,4.01468,2490.9,2490.4,4.01533]
[1729702667470,4.0144,2491.1,2490.4,4.01532]
[1729702667641,4.0144,2491.1,2490.6,8.03011]
[1729702667856,4.01394,2491.4,2490.7,0.08028724]
[1729702668059,4.01394,2491.4,2490.8,4.01476]
[1729702668263,4.01382,2491.4,2490.8,4.01477]
[1729702668497,1.3434,2491.5,2490.8,4.01477]
[1729702668795,4.01349,2491.6,2491.1,4.01427]
[1729702669002,4.01349,2491.6,2491.1,4.01421]
[1729702669164,8.0271,2491.6,2491.1,4.01421]
[1729702669367,4.01349,2491.6,2491.1,4.01421]
[1729702669908,4.01366,2491.5,2491.0,4.01444]
[1729702670200,4.01383,2491.4,2491.0,4.01444]
[1729702670591,4.01366,2491.5,2491.0,8.02878]
[1729702670764,4.01366,2491.5,2491.0,4.01434]
[1729702671609,4.01422,2491.2,2490.6,5.36816]
[1729702671811,5.07970338,2491.7,2490.8,4.0147]
[1729702672099,4.01399,2491.3,2490.8,4.0147]
[1729702672663,8.02806,2491.3,2490.8,4.0147]
[1729702672860,4.01399,2491.3,2490.8,4.0147]
[1729702673097,4.01414,2491.2,2490.8,4.0147]
[1729702673406,4.01431,2491.1,2490.7,4.0149]
[1729702674107,4.01415,2491.2,2490.7,4.0149]
[1729702674334,4.01364,2491.5,2490.9,4.01445]
[1729702674482,4.0135,2491.6,2490.9,4.01445]
[1729702674683,4.01366,2491.5,2491.0,4.01445]
[1729702674913,4.01366,2491.5,2491.1,4.01426]
[1729702675908,4.0135,2491.6,2491.0,4.01438]
[1729702676106,4.0135,2491.6,2491.1,4.01421]
[1729702677436,4.01365,2491.5,2491.1,4.01421]
[1729702677638,4.01349,2491.6,2491.1,4.01421]
[1729702677936,1.3434,2491.9,2491.1,4.01421]
[1729702678123,4.01363,2491.6,2491.1,4.01421]
[1729702678295,4.01336,2491.7,2491.2,4.0141]
[1729702678737,8.02677,2491.7,2491.2,4.0141]
[1729702678903,4.01336,2491.7,2491.2,4.0141]
[1729702679237,1.3434,2491.9,2491.4,4.01379]
[1729702679417,1.3434,2491.9,2491.5,4.01355]
[1729702679623,5.35643,2491.9,2491.5,4.01355]
[1729702679811,4.01324,2491.8,2491.3,5.27122]
[1729702680441,5.35643,2491.9,2491.3,5.27122]
[1729702680442,4.01342,2491.7,2491.3,5.27124]
[1729702680999,5.26535,2492.3,2491.3,2.185834]
[1729702681225,4.01221,2492.4,2491.9,4.01291]
[1729702681536,1.2529,2492.6,2491.3,1.2573]
[1729702681719,4.01296,2492.0,2491.5,4.01363]
[1729702681927,4.01341,2491.7,2491.1,4.0142]
[1729702682125,4.01356,2491.6,2491.1,4.0142]
[1729702682302,4.01356,2491.6,2491.2,4.01405]
[1729702682497,1.2529,2492.3,2492.0,4.01283]
[1729702682702,4.01198,2492.6,2491.8,1.305]
[1729702682703,4.01196,2492.6,2491.8,1.305]
[1729702682904,4.01165,2492.8,2492.3,4.0122]
[1729702683139,4.01181,2492.7,2492.2,4.0125]
[1729702683449,4.01187,2492.6,2492.2,4.0125]
[1729702683739,4.01187,2492.6,2491.8,1.305]
[1729702683740,4.0123,2492.4,2491.9,4.01289]
[1729702684038,4.01204,2492.5,2492.1,4.01267]
[1729702684597,4.01188,2492.6,2492.1,4.01257]
[1729702684801,1.2529,2492.1,2490.9,4.01461]
[1729702684996,8.02847,2491.2,2490.5,4.01515]
[1729702685235,1.2529,2491.4,2490.3,4.01546]
[1729702685442,4.01478,2490.8,2490.2,0.2]
[1729702685642,4.01508,2490.7,2490.2,0.2]
[1729702686318,8.03017,2490.7,2490.2,0.2]
[1729702686649,4.45617473,2490.9,2490.2,0.2]
[1729702686650,8.02954,2490.8,2490.2,0.2]
[1729702686799,4.01501,2490.7,2490.2,4.21569]
[1729702687000,4.01501,2490.7,2490.2,0.2]
[1729702687640,4.0151,2490.6,2490.2,0.2]
[1729702687844,4.01501,2490.7,2490.2,0.2]
[1729702688428,8.03009,2490.7,2490.2,0.2]
[1729702688633,4.01501,2490.7,2490.2,0.2]
[1729702689301,8.47089473,2490.9,2490.4,4.0154]
[1729702689302,4.01472,2490.9,2490.4,4.0154]
[1729702689504,4.01472,2490.9,2490.5,0.08029928]
[1729702689705,4.01429,2491.1,2490.4,4.01527]
[1729702689706,4.01447,2491.0,2490.4,4.01527]
[1729702689999,4.01447,2491.0,2490.5,0.08029587]
[1729702690340,4.01454,2491.0,2490.5,4.09552587]
[1729702690638,4.01471,2490.9,2490.3,4.01544]
[1729702691139,4.01471,2490.9,2490.2,4.2156]
[1729702691140,4.01492,2490.8,2490.2,0.2]
[1729702691306,4.01487,2490.8,2490.2,4.21564]
[1729702691503,4.01487,2490.8,2490.3,8.03103]
[1729702691736,4.01462,2490.9,2490.3,4.01546]
[1729702691914,4.01462,2490.9,2490.4,4.01534]
[1729702692109,4.01453,2491.0,2490.4,4.01534]
[1729702692632,4.01463,2490.9,2490.4,4.01534]
[1729702692826,4.01463,2490.9,2490.3,4.01556]
[1729702693050,4.01463,2490.9,2490.4,4.01526]
[1729702693364,4.01439,2491.1,2490.2,0.2]
[1729702693365,4.0151,2490.6,2490.2,0.2]
[1729702693586,1.1534,2490.8,2490.2,0.2]
[1729702693733,4.01558,2490.3,2490.2,0.2]
[1729702694160,8.47175473,2490.3,2490.2,0.2]
[1729702694351,9.65425473,2490.3,2490.2,0.2]
[1729702694558,12.65425473,2490.3,2490.2,0.2]
[1729702694760,8.1984,2490.1,2490.0,1.19577925]
[1729702695072,8.84924752,2490.1,2490.0,9.25e-06]
[1729702695240,7.05284,2489.7,2489.6,0.005]
[1729702695446,11.87062073,2489.7,2489.6,0.005]
[1729702695665,12.15966696,2489.7,2489.6,0.005]
[1729702695975,11.87031815,2489.7,2489.6,0.005]
[1729702696437,11.50901473,2489.7,2489.6,0.005]
[1729702696637,11.86985599,2489.7,2489.6,0.005]
[1729702696838,4.01735,2489.2,2489.1,3.0058]
[1729702697069,12.55655978,2489.2,2489.1,3.0058]
[1729702697833,8.26281,2489.1,2489.0,800.0]
[1729702698027,8.63329106,2489.1,2489.0,780.63729259]
[1729702698371,8.63285685,2489.1,2489.0,780.63729259]
[1729702698555,12.70898473,2489.1,2489.0,780.63729259]
[1729702698763,13.06904276,2489.1,2489.0,780.63729259]
[1729702699067,12.70898473,2489.1,2489.0,780.63729259]
[1729702699371,5.69147473,2489.1,2489.0,780.63729259]
[1729702699544,4.45617473,2489.7,2489.2,4.01734]
[1729702699745,5.25153,2489.9,2489.1,4.01736]
[1729702699932,4.01638,2489.8,2489.1,4.0174]
[1729702700131,4.01702,2489.5,2489.0,780.63729259]
[1729702700330,4.45617473,2489.6,2489.0,780.63729259]
[1729702700331,4.01751,2489.1,2489.0,780.63729259]
[1729702700570,5.25267,2489.2,2489.0,780.63729259]
[1729702700930,1.2353,2489.5,2489.0,780.63729259]
[1729702701468,4.01663,2489.7,2489.1,4.01748]
[1729702701633,4.01663,2489.7,2489.0,780.63729259]
[1729702701634,4.01692,2489.5,2489.0,780.63729259]
[1729702701838,4.01671,2489.6,2489.0,784.65488259]
[1729702702144,5.25281,2489.1,2489.0,780.63729259]
[1729702702747,8.26281,2489.1,2489.0,780.63729259]
[1729702703133,7.06381,2489.1,2489.0,768.37385259]
[1729702703339,7.42278356,2489.1,2489.0,753.09444046]
[1729702703534,7.99708442,2489.1,2489.0,753.09444046]
[1729702703859,7.42278356,2489.1,2489.0,753.09444046]
[1729702704060,7.06381,2489.1,2489.0,753.09444046]
[1729702704265,12.15420433,2489.1,2489.0,753.09444046]
[1729702704759,7.05381,2489.1,2489.0,753.09444046]
[1729702705081,4.05381,2489.1,2489.0,753.09444046]
[1729702705581,4.01751,2489.1,2489.0,753.09444046]
[1729702705791,4.01649,2489.8,2489.0,756.97605133]
[1729702706079,4.01745,2489.2,2489.0,753.09444046]
[1729702706264,4.01751,2489.1,2489.0,753.09444046]
[1729702706573,4.01707,2489.4,2489.0,753.09444046]
[1729702706877,4.01683,2489.6,2489.0,753.09444046]
[1729702707045,4.01696,2489.5,2489.0,753.09444046]
[1729702707249,4.01714,2489.4,2489.0,753.09444046]
[1729702707435,4.01723,2489.3,2489.0,753.09444046]
[1729702707634,4.01645,2489.8,2489.0,753.09444046]
[1729702707635,4.01751,2489.1,2489.0,753.09444046]
[1729702707870,4.01737,2489.2,2489.0,753.09444046]
[1729702708084,4.01751,2489.1,2489.0,753.09444046]
[1729702708788,12.10790433,2489.1,2489.0,742.02210996]
[1729702708947,30.34081079,2489.1,2489.0,718.45670741]
[1729702709166,30.62782408,2489.1,2489.0,714.243678]
[1729702709474,30.07782408,2489.1,2489.0,712.234838]
[1729702709674,18.55161398,2489.1,2489.0,712.234838]
[1729702710038,29.07479495,2489.1,2489.0,711.774838]
[1729702710265,30.00659419,2489.1,2489.0,705.748318]
[1729702710471,25.35810766,2489.1,2489.0,705.748318]
[1729702710786,13.62537109,2489.1,2489.0,705.748318]
[1729702711079,14.17537109,2489.1,2489.0,705.498318]
[1729702711241,14.17537109,2489.1,2489.0,699.471798]
[1729702711442,18.40537109,2489.1,2489.0,699.471798]
[1729702711636,14.61132858,2489.1,2489.0,699.471798]
[1729702712274,13.05181204,2489.1,2489.0,693.445278]
[1729702712636,12.69333764,2489.1,2489.0,693.445278]
[1729702713249,12.12790433,2489.1,2489.0,683.401078]
[1729702713471,9.12790433,2489.1,2489.0,683.401078]
[1729702714056,9.11790433,2489.1,2489.0,683.401078]
[1729702714249,9.12790433,2489.1,2489.0,677.374558]
[1729702714502,9.12790433,2489.1,2489.0,673.356878]
[1729702714975,12.69333764,2489.1,2489.0,673.207615]
[1729702715192,13.36360433,2489.1,2489.0,673.207615]
[1729702715773,13.36360433,2489.1,2489.0,669.189935]
[1729702715973,13.36360433,2489.1,2489.0,663.163415]
[1729702716471,13.92903764,2489.1,2489.0,655.128055]
[1729702716692,16.89003764,2489.1,2489.0,655.128055]
[1729702716846,16.34003764,2489.1,2489.0,655.128055]
[1729702717051,16.89003764,2489.1,2489.0,655.128055]
[1729702717248,16.89003764,2489.1,2489.0,653.119215]
[1729702717450,16.89003764,2489.1,2489.0,647.092695]
[1729702717856,13.36360433,2489.1,2489.0,647.092695]
[1729702718093,13.36360433,2489.1,2489.0,627.67315568]
[1729702718094,20.96453664,2489.1,2489.0,627.67315568]
[1729702718400,38.41187575,2489.1,2489.0,602.55373797]
[1729702718607,41.27635065,2489.1,2489.0,434.04576835]
[1729702718750,42.93831455,2489.1,2489.0,349.96848623]
[1729702718949,36.67209297,2489.1,2489.0,294.370625]
[1729702719275,40.48604275,2489.1,2489.0,242.03030952]
[1729702719479,40.6015808,2489.1,2489.0,222.08049937]
[1729702719655,40.6015808,2489.1,2489.0,175.83953411]
[1729702719859,43.98283252,2489.1,2489.0,150.91875753]
[1729702720056,43.98283252,2489.1,2489.0,138.4141836]
[1729702720288,43.98283252,2489.1,2489.0,89.9876636]
[1729702720289,44.83693585,2489.1,2489.0,89.9876636]
[1729702720494,39.83693585,2489.1,2489.0,83.6276636]
[1729702720700,39.4769255,2489.1,2489.0,74.5976636]
[1729702720865,38.26272722,2489.1,2489.0,46.19359602]
[1729702721062,36.47463308,2489.1,2489.0,27.11359602]
[1729702721359,36.47463308,2489.1,2488.5,0.005]
[1729702721360,6.44932,2488.6,2488.5,0.005]
[1729702721671,11.04976665,2488.6,2488.5,0.005]
[1729702721872,11.61673532,2488.6,2488.5,0.005]
[1729702722280,11.59689532,2488.5,2488.4,6.6e-06]
[1729702722751,12.14689532,2488.5,2488.4,6.6e-06]
[1729702722951,15.50307486,2488.5,2488.4,6.6e-06]
[1729702723398,15.96179124,2488.5,2488.4,6.6e-06]
[1729702723556,16.53154492,2488.5,2488.4,6.6e-06]
[1729702723754,16.53154492,2488.5,2486.3,1.5518]
[1729702723755,4.02058,2487.2,2486.3,1.5518]
[1729702723948,7.02052,2487.3,2486.3,1.5518]
[1729702724153,3.0,2487.5,2486.4,4.02184]
[1729702724354,3.0,2487.5,2486.3,5.57376]
[1729702724355,3.0,2487.5,2487.0,1.5441]
[1729702724590,7.02024,2487.5,2487.0,1.5441]
[1729702724791,4.01,2487.6,2487.0,1.5441]
[1729702725386,4.01955,2487.9,2487.0,1.5441]
[1729702725597,4.01936,2488.0,2487.0,1.5441]
[1729702725751,0.56696867,2488.4,2487.2,4.0205]
[1729702725951,4.57373407,2488.7,2487.5,4.02]
[1729702726186,5.61778424,2489.2,2488.0,4.01926]
[1729702726350,4.01722,2489.3,2488.1,4.01902]
[1729702726557,4.01704,2489.4,2488.3,1.5484]
[1729702726926,4.01737,2489.2,2488.3,1.5484]
[1729702727271,4.0171,2489.4,2488.3,1.5484]
[1729702727465,13.12407433,2489.6,2488.3,5.56719]
[1729702727775,3.0,2489.4,2488.3,5.57719]
[1729702727981,3.0,2489.4,2488.3,6.134909]
[1729702728183,4.01682,2489.6,2488.4,4.01851]
[1729702728499,13.11652433,2490.0,2488.7,1.5122]
[1729702728500,4.01613,2490.0,2488.7,1.5122]
[1729702728793,4.01613,2490.0,2488.3,5.64811333]
[1729702728794,4.01584,2490.2,2488.8,1.5222]
[1729702729090,4.01541,2490.4,2489.0,0.01]
[1729702729296,4.01608,2490.0,2489.0,0.01]
[1729702729494,4.01584,2490.2,2489.0,0.01]
[1729702729855,4.01642,2489.8,2488.9,1.5122]
[1729702730056,4.01658,2489.7,2488.9,1.5122]
[1729702730309,4.01699,2489.5,2488.9,1.5122]
[1729702730604,4.01666,2489.7,2488.9,1.5122]
[1729702730826,4.01599,2490.1,2488.9,1.5122]
[1729702730981,3.0,2489.9,2489.0,0.01]
[1729702731181,7.01623,2489.9,2488.9,1.5122]
[1729702731494,7.01623,2489.9,2488.9,1.5222]
[1729702731495,3.0,2489.9,2488.9,1.5222]
[1729702731715,0.43233157,2490.1,2488.9,1.5122]
[1729702731716,3.0,2489.7,2488.9,1.5122]
[1729702732081,4.01631,2489.9,2488.9,1.5122]
[1729702732516,4.01581,2490.2,2489.1,1.6324]
[1729702732726,4.01581,2490.2,2488.9,0.956834]
[1729702732727,4.01531,2490.5,2489.5,1.6324]
[1729702733026,4.01498,2490.7,2489.5,1.6324]
[1729702733027,4.0152,2490.6,2489.6,0.01]
[1729702733188,8.46176157,2490.9,2489.7,1.6324]
[1729702733393,4.01468,2490.9,2490.1,1.6324]
[1729702733685,4.01518,2490.6,2490.1,1.6324]
[1729702733884,4.01536,2490.5,2490.1,1.6324]
[1729702734307,4.47802491,2490.8,2490.1,1.6324]
[1729702734485,4.01455,2491.0,2490.1,1.6324]
[1729702734688,4.47671491,2491.6,2490.4,0.01]
[1729702734883,4.01325,2491.8,2490.7,1.6383]
[1729702735100,8.02655,2491.8,2490.7,1.6383]
[1729702735400,4.01325,2491.8,2490.7,1.6383]
[1729702735937,4.47604491,2492.0,2490.9,1.6503]
[1729702736147,4.0123,2492.4,2491.3,1.6503]
[1729702736428,4.0123,2492.4,2491.5,1.6503]
[1729702736429,4.47546491,2492.4,2491.5,1.6503]
[1729702736639,0.46316491,2492.4,2491.6,0.01]
[1729702736947,0.47856815,2492.8,2491.8,0.01]
[1729702736948,0.46316491,2492.7,2491.8,0.01]
[1729702737289,4.47488491,2492.7,2491.9,1.5575]
[1729702737489,0.46316491,2492.7,2492.0,0.01]
[1729702737686,4.01212,2492.5,2491.9,1.5575]
[1729702737934,0.46316491,2492.7,2491.9,1.5675]
[1729702738092,4.55931956,2493.2,2491.9,1.5675]
[1729702738093,4.01148,2492.9,2491.9,1.5675]
[1729702738330,4.43601289,2492.9,2491.9,1.5675]
[1729702738727,8.02232,2493.1,2491.9,1.5675]
[1729702738919,4.01164,2492.8,2491.9,1.5675]
[1729702739148,3.0,2492.6,2491.9,1.5575]
[1729702739351,4.01213,2492.5,2491.9,1.5575]
[1729702739552,7.01219,2492.4,2491.9,1.5575]
[1729702739925,3.0,2492.2,2491.9,1.5575]
[1729702740833,7.01228,2492.4,2491.9,1.5575]
[1729702741629,3.0,2492.2,2491.9,1.5575]
[1729702741964,4.01228,2492.4,2491.9,1.5575]
[1729702741965,4.0122,2492.4,2491.9,1.5575]
[1729702742135,4.01193,2492.6,2491.9,1.5575]
[1729702742758,4.01181,2492.7,2491.9,1.5575]
[1729702742957,3.0,2492.5,2491.9,1.5575]
[1729702743276,3.0,2492.7,2491.9,1.5575]
[1729702743719,7.01173,2492.7,2491.9,1.5575]
[1729702744222,7.01173,2492.7,2491.9,1.5475]
[1729702744424,4.01189,2492.6,2491.9,1.5475]
[1729702744623,3.0,2492.7,2491.9,1.5475]
[1729702744624,7.01186,2492.7,2491.9,1.5475]
[1729702744819,3.0,2492.5,2491.9,1.5475]
[1729702745052,3.0,2492.3,2491.9,1.5375]
[1729702745365,4.01123,2493.0,2491.9,1.5375]
[1729702745366,4.01284,2492.0,2491.9,1.5375]
[1729702745567,7.01253,2492.2,2491.3,0.01]
[1729702745921,3.0,2492.0,2491.0,0.01]
[1729702746277,4.0128,2492.1,2491.0,4.02433]
[1729702746278,3.0,2492.1,2491.0,4.02433]
[1729702746562,3.01,2492.7,2491.2,4.0141]
[1729702746773,4.01244,2492.3,2491.2,4.0141]
[1729702747063,7.01256,2492.2,2491.1,4.01418]
[1729702747262,4.01276,2492.1,2491.0,4.01431]
[1729702747423,0.01,2492.5,2491.1,4.01425]
[1729702747424,3.0,2492.2,2491.1,4.01425]
[1729702747625,4.01219,2492.4,2490.8,4.01461]
[1729702747863,3.0,2491.9,2490.8,4.01461]
[1729702748066,4.01318,2491.8,2490.9,1.5888]
[1729702748225,3.0,2491.9,2490.9,5.6134]
[1729702748427,7.01309,2491.9,2490.9,1.5988]
[1729702748644,7.01309,2491.9,2490.9,1.5888]
[1729702748942,3.0,2491.9,2490.9,5.61329]
[1729702749140,3.0,2491.9,2491.0,1.5775]
[1729702749327,0.01,2492.3,2491.0,1.5775]
[1729702749328,4.01325,2491.8,2491.0,1.5775]
[1729702749525,7.01356,2491.6,2491.0,1.5775]
[1729702749728,3.0,2491.7,2491.0,1.5775]
[1729702749929,0.01,2492.1,2491.0,1.5775]
[1729702749930,3.0,2492.0,2491.0,1.5775]
[1729702750167,3.0,2491.7,2491.0,1.5775]
[1729702750738,3.0,2491.4,2491.0,1.5775]
[1729702750969,3.0,2490.9,2490.6,1.5134]
[1729702751140,0.02,2491.6,2490.6,1.5134]
[1729702751141,3.0,2491.2,2490.6,1.5134]
[1729702751341,3.0,2491.1,2490.6,1.5134]
[1729702751754,4.01437,2491.1,2490.6,1.5134]
[1729702751945,3.0,2491.2,2490.6,1.5134]
[1729702752141,7.01414,2491.2,2490.6,1.5134]
[1729702752865,3.0,2491.0,2490.6,1.5134]
[1729702753069,7.01413,2491.2,2490.6,1.5134]
[1729702753279,3.0,2491.2,2490.6,1.5134]
[1729702753495,3.0,2491.4,2490.6,1.5134]
[1729702753639,7.0139,2491.4,2490.6,1.5134]
[1729702753835,4.01396,2491.3,2490.6,1.5134]
[1729702754249,3.0,2491.4,2490.6,1.5134]
[1729702754448,0.41928047,2491.2,2490.6,1.5134]
[1729702754670,4.43346047,2491.2,2490.6,1.5134]
[1729702754839,3.41928047,2491.2,2490.6,1.5134]
[1729702755585,7.01438,2491.1,2490.6,1.5134]
[1729702755938,7.01438,2491.1,2490.0,4.01596]
[1729702755939,3.0,2490.9,2490.3,1.5474]
[1729702756371,4.01502,2490.7,2490.3,1.5474]
[1729702756567,3.0,2490.7,2490.3,1.5474]
[1729702756767,3.0,2490.8,2490.3,1.5474]
[1729702757077,3.0,2490.9,2490.3,1.5474]
[1729702758279,0.41928047,2491.2,2489.9,5.1707099]
[1729702758440,0.41928047,2491.2,2490.3,4.01548]
[1729702758646,0.41928047,2491.2,2490.0,0.91870899]
[1729702758647,4.01452,2491.0,2490.4,1.6192]
[1729702758945,4.0147,2490.9,2490.4,1.6192]
[1729702759347,4.0149,2490.8,2490.4,1.6192]
[1729702759645,4.01445,2491.0,2490.4,1.6192]
[1729702759842,3.0,2490.9,2490.4,1.6192]
[1729702760972,7.0147,2490.9,2490.4,1.6192]